bitfinex/quotes_ETHUSD_20250411
["timestamp","ask_amount","ask_price","bid_price","bid_amount"]
[1744352336387,13.4604,1552.7,1552.4,6.44157]
[1744352336744,13.4604,1552.7,1552.4,7.25677]
[1744352336948,7.02,1552.7,1552.4,7.25663]
[1744352337143,13.46042,1552.7,1552.4,0.8152]
[1744352337360,19.90109,1552.7,1552.4,0.8152]
[1744352337757,7.20517,1552.6,1552.2,6.44244]
[1744352337961,6.44126,1552.5,1552.2,6.44244]
[1744352338962,7.20517,1552.6,1552.2,12.88472]
[1744352339174,13.64627,1552.6,1552.2,6.44228]
[1744352339481,13.6462,1552.6,1552.2,12.88456]
[1744352339684,6.4413,1552.5,1552.2,6.44228]
[1744352340476,13.64625,1552.6,1552.2,6.44227]
[1744352342253,6.44133,1552.5,1552.2,6.44227]
[1744352342582,6.44097,1552.6,1552.3,6.44203]
[1744352342976,6.44097,1552.6,1552.2,6.44226]
[1744352342977,6.44097,1552.6,1552.2,12.88453]
[1744352343191,6.44097,1552.6,1552.3,6.44202]
[1744352343590,19.90103,1552.7,1552.3,12.88393]
[1744352344072,19.90103,1552.7,1552.3,6.44191]
[1744352344256,21.967553,1552.7,1552.3,6.44191]
[1744352344788,6.44094,1552.6,1552.2,12.88474]
[1744352345290,6.44094,1552.6,1552.3,6.44202]
[1744352348704,21.967453,1552.7,1552.3,12.88388]
[1744352348915,6.44084,1552.6,1552.3,6.44186]
[1744352349197,6.44088,1552.6,1552.3,12.88372]
[1744352349399,13.46041,1552.7,1552.3,12.88377]
[1744352349694,7.02,1552.7,1552.4,13.69826]
[1744352349863,7.02,1552.7,1552.4,7.25667]
[1744352350064,13.46044,1552.7,1552.4,7.25667]
[1744352350690,7.02,1552.7,1552.5,6.44116]
[1744352350876,6.44043,1552.7,1552.4,7.25667]
[1744352351079,14.169099,1552.7,1552.4,0.8152]
[1744352352301,6.44085,1552.6,1552.4,0.8152]
[1744352352470,14.169259,1552.7,1552.4,0.8152]
[1744352352670,14.169079,1552.7,1552.4,0.8152]
[1744352352870,14.169099,1552.7,1552.4,0.8152]
[1744352353071,14.169069,1552.7,1552.4,0.8152]
[1744352353269,7.728479,1552.7,1552.4,7.25679]
[1744352353806,7.728479,1552.7,1552.4,7.25671]
[1744352354105,14.994009,1552.7,1552.3,6.44197]
[1744352354417,6.44105,1552.6,1552.2,10.9087849]
[1744352354699,6.44141,1552.5,1552.2,10.9087849]
[1744352355066,6.44141,1552.5,1552.2,4.4663849]
[1744352355272,6.44205,1552.3,1552.2,3.6968849]
[1744352355789,13.70852,1552.4,1552.2,3.6968849]
[1744352355991,7.2667,1552.4,1552.2,3.6968849]
[1744352356973,6.44138,1552.5,1552.1,7.26209]
[1744352357170,0.8249,1552.6,1552.1,0.8195]
[1744352357407,6.44189,1552.4,1552.1,0.8195]
[1744352357576,6.44212,1552.3,1552.1,0.8195]
[1744352357973,6.44246,1552.2,1552.1,0.05]
[1744352358174,7.26702,1552.3,1552.1,0.05]
[1744352358503,6.44212,1552.3,1552.1,0.05]
[1744352358692,12.88438,1552.3,1552.1,0.05]
[1744352358892,6.44212,1552.3,1552.1,0.05]
[1744352359094,12.88353,1552.4,1552.1,0.05]
[1744352359572,6.44168,1552.4,1552.2,0.7695]
[1744352360282,12.88258,1552.5,1552.2,0.7695]
[1744352361507,6.44123,1552.5,1552.2,0.7695]
[1744352361807,7.26534,1552.7,1552.2,10.9087249]
[1744352362109,13.70595,1552.7,1552.3,6.44181]
[1744352362407,6.44087,1552.6,1552.2,17.3512049]
[1744352362607,12.88198,1552.6,1552.2,10.9087949]
[1744352362993,6.44133,1552.5,1552.2,10.9087949]
[1744352363385,6.44177,1552.4,1552.2,3.6968849]
[1744352364309,12.88365,1552.4,1552.2,3.6968849]
[1744352365613,6.44177,1552.4,1552.2,3.6968849]
[1744352367019,6.44177,1552.4,1552.1,0.05]
[1744352367637,12.88361,1552.4,1552.1,0.05]
[1744352369519,7.20208,1552.4,1552.1,0.05]
[1744352369688,13.64403,1552.4,1552.1,0.05]
[1744352372041,6.44168,1552.4,1552.1,0.05]
[1744352372434,6.44168,1552.4,1552.1,6.49287]
[1744352375122,12.88351,1552.4,1552.1,6.49287]
[1744352375417,6.44168,1552.4,1552.1,6.49287]
[1744352375616,6.4421,1552.3,1552.1,0.05]
[1744352375826,6.44168,1552.4,1552.1,6.49287]
[1744352376690,12.88362,1552.4,1552.1,0.05]
[1744352377091,14.171982,1552.4,1552.1,0.05]
[1744352377523,7.730042,1552.4,1552.1,0.05]
[1744352377728,6.44168,1552.4,1552.1,0.05]
[1744352378022,6.44168,1552.4,1552.1,6.49276]
[1744352378420,12.88351,1552.4,1552.1,0.05]
[1744352378594,6.44213,1552.3,1552.1,0.05]
[1744352379408,6.44139,1552.5,1552.1,6.49287]
[1744352379732,6.44139,1552.5,1552.2,6.44231]
[1744352380698,12.88282,1552.5,1552.2,6.44231]
[1744352381130,6.44167,1552.4,1552.1,6.49285]
[1744352382214,12.88351,1552.4,1552.1,6.49285]
[1744352382495,12.88351,1552.4,1552.1,0.05]
[1744352383228,6.44167,1552.4,1552.1,0.05]
[1744352383429,12.88359,1552.4,1552.1,0.05]
[1744352384424,6.44211,1552.3,1552.1,0.05]
[1744352384994,6.44246,1552.2,1552.1,0.05]
[1744352386831,12.88451,1552.3,1552.1,0.05]
[1744352386998,6.44211,1552.3,1552.1,0.05]
[1744352388029,6.44096,1552.6,1552.1,0.05]
[1744352388233,14.658346,1552.6,1552.2,6.4422]
[1744352389203,6.44141,1552.5,1552.2,6.4422]
[1744352393835,12.88304,1552.5,1552.1,10.1896949]
[1744352394004,12.88304,1552.5,1552.1,16.6323949]
[1744352394205,6.44141,1552.5,1552.1,16.6323949]
[1744352394406,6.4423,1552.3,1552.1,3.7468849]
[1744352396407,6.4423,1552.3,1552.1,0.05]
[1744352396938,7.23668,1552.3,1552.1,0.05]
[1744352397119,7.23667,1552.3,1552.1,0.05]
[1744352397319,6.44227,1552.3,1552.1,0.19398008]
[1744352397518,12.88345,1552.4,1552.1,0.19398008]
[1744352397728,14.39781986,1552.4,1552.1,1.00588008]
[1744352398555,6.44212,1552.3,1552.1,0.19398008]
[1744352400530,12.88445,1552.3,1552.1,0.19398008]
[1744352400724,12.88437,1552.3,1552.1,0.19398008]
[1744352400919,6.44212,1552.3,1552.1,0.19398008]
[1744352401652,7.95607986,1552.4,1552.1,6.63672008]
[1744352401858,6.44171,1552.4,1552.1,6.63672008]
[1744352402359,6.44171,1552.4,1552.2,0.8119]
[1744352402664,14.3485986,1552.5,1552.2,0.8119]
[1744352403123,7.87648986,1552.4,1552.1,0.05]
[1744352403460,6.44127,1552.5,1552.2,0.8119]
[1744352403753,6.44127,1552.5,1552.2,13.69662]
[1744352403968,6.44127,1552.5,1552.2,7.25417]
[1744352404668,6.44127,1552.5,1552.2,13.69649]
[1744352404872,7.23528,1552.6,1552.3,6.4419]
[1744352405262,6.44088,1552.6,1552.3,6.4419]
[1744352405465,6.44088,1552.6,1552.2,13.69668]
[1744352407277,6.44088,1552.6,1552.3,6.44197]
[1744352407479,0.1488,1552.8,1552.4,0.8119]
[1744352407781,0.1488,1552.8,1552.5,12.88209]
[1744352408280,0.1488,1552.8,1552.5,6.44101]
[1744352409275,0.1488,1552.8,1552.5,12.88205]
[1744352409783,0.1488,1552.8,1552.7,10.11452312]
[1744352409952,0.1488,1552.8,1552.7,16.81140802]
[1744352413470,0.1488,1552.8,1552.7,17.30522364]
[1744352417085,0.1488,1552.8,1552.7,14.44299052]
[1744352419083,0.8032,1553.3,1553.0,6.43879]
[1744352419782,0.8032,1553.3,1553.0,12.87767]
[1744352420787,0.8032,1553.3,1553.0,6.43879]
[1744352421586,0.8032,1553.3,1552.8,3.0]
[1744352421587,6.43853,1553.2,1552.8,9.43992]
[1744352422260,6.43853,1553.2,1552.9,6.43953]
[1744352422459,8.41975898,1553.3,1552.9,12.8789]
[1744352423391,1.98180898,1553.3,1553.0,6.4391]
[1744352423588,0.8032,1553.3,1553.1,6.4387]
[1744352424160,13.67525,1553.5,1553.1,6.4387]
[1744352424491,12.87534,1553.4,1553.0,6.43901]
[1744352424987,7.23887,1553.3,1552.9,7.19684]
[1744352425174,7.162307,1553.2,1552.9,6.43954]
[1744352425576,0.723887,1553.2,1553.0,6.43904]
[1744352425781,7.23887,1553.3,1553.0,6.43904]
[1744352425960,0.8009,1553.3,1553.0,12.87802]
[1744352426155,0.8009,1553.3,1553.1,6.4387]
[1744352428767,0.8009,1553.3,1553.0,13.63529]
[1744352430703,0.8009,1553.3,1553.2,6.43832]
[1744352430887,13.06371,1553.6,1553.3,6.43757]
[1744352430888,0.7882,1553.5,1553.3,6.43757]
[1744352431198,0.7882,1553.7,1553.4,6.43726]
[1744352431398,0.7882,1553.7,1553.5,6.43702]
[1744352431763,0.7882,1553.7,1553.6,0.3129749]
[1744352434003,7.22444,1553.7,1553.6,0.3129749]
[1744352434181,7.946859,1553.7,1553.6,0.3129749]
[1744352434500,7.946859,1553.7,1553.4,6.43745]
[1744352434795,7.946859,1553.7,1553.5,0.31399331]
[1744352434997,1.510619,1553.7,1553.5,0.31399331]
[1744352435180,0.7882,1553.7,1553.5,0.31399331]
[1744352436304,0.7882,1553.7,1553.5,6.75088331]
[1744352436606,0.7882,1553.7,1553.5,13.18780331]
[1744352436903,0.7882,1553.7,1553.5,6.75088331]
[1744352438002,0.7882,1553.9,1553.7,6.43618]
[1744352438469,0.7882,1553.9,1553.8,0.31258627]
[1744352438673,0.7882,1554.0,1553.8,0.31258627]
[1744352438903,0.7882,1554.0,1553.8,6.74824627]
[1744352439809,7.22245,1554.2,1553.8,13.94447627]
[1744352439976,7.22245,1554.2,1553.9,6.43532]
[1744352439977,8.606295,1554.2,1553.9,6.43532]
[1744352440173,0.7882,1554.2,1554.0,0.31320044]
[1744352440379,7.4042,1554.3,1554.0,0.31320044]
[1744352440580,6.43445,1554.2,1553.9,10.1321649]
[1744352440810,13.83806,1554.3,1554.0,0.31191893]
[1744352441308,7.22206,1554.3,1554.0,0.31191893]
[1744352441508,1.66159592,1554.3,1554.0,6.74684893]
[1744352441715,8.09543592,1554.3,1554.0,0.31191893]
[1744352442014,6.43435,1554.2,1554.0,0.31191893]
[1744352442615,12.8688,1554.2,1554.0,0.31191893]
[1744352442812,6.43435,1554.2,1554.0,0.31191893]
[1744352443381,8.09536592,1554.3,1554.0,0.31191893]
[1744352443817,13.67838659,1554.2,1554.0,0.31191893]
[1744352444112,7.24388659,1554.2,1554.0,0.31191893]
[1744352444312,6.43435,1554.2,1554.0,0.31191893]
[1744352444718,7.22197,1554.3,1554.0,0.31191893]
[1744352444890,13.65601,1554.3,1554.0,0.31191893]
[1744352445817,6.4343,1554.2,1554.0,0.31191893]
[1744352446007,6.43459,1554.1,1554.0,0.31191893]
[1744352446713,6.43459,1554.1,1553.8,6.43577]
[1744352447019,6.43459,1554.1,1553.9,0.31200627]
[1744352447918,7.721479,1554.1,1553.9,0.31200627]
[1744352448221,1.286889,1554.1,1553.9,0.31200627]
[1744352448420,12.86868,1554.2,1553.9,0.31200627]
[1744352448790,6.4346,1554.1,1553.9,0.31200627]
[1744352451226,12.86879,1554.2,1553.9,0.31200627]
[1744352451618,6.4343,1554.2,1553.9,0.31200627]
[1744352451822,12.86879,1554.2,1553.9,0.31200627]
[1744352452020,6.4343,1554.2,1553.9,0.31200627]
[1744352452190,12.86871,1554.2,1553.9,0.31200627]
[1744352452387,14.234401,1554.2,1553.9,0.31200627]
[1744352454804,6.43459,1554.1,1553.9,0.31200627]
[1744352455008,12.86942,1554.1,1553.9,0.31200627]
[1744352455325,12.86942,1554.1,1553.7,24.0094249]
[1744352455493,6.43459,1554.1,1554.0,0.31129044]
[1744352455695,7.8580421,1554.1,1553.7,24.0094249]
[1744352455914,6.43459,1554.1,1554.0,0.31129044]
[1744352456113,6.43459,1554.1,1553.7,17.3944249]
[1744352456625,12.86858,1554.2,1553.8,6.74783782]
[1744352456834,12.86858,1554.2,1553.8,13.18349782]
[1744352457126,6.43424,1554.2,1553.8,13.18349782]
[1744352457331,6.43424,1554.2,1554.0,0.7912]
[1744352457634,6.43424,1554.2,1554.1,0.31012944]
[1744352458130,7.22204,1554.3,1554.1,0.31012944]
[1744352458640,6.43417,1554.2,1554.1,0.31012944]
[1744352458925,7.22204,1554.3,1554.1,0.31012944]
[1744352459119,0.7882,1554.3,1553.9,6.43526]
[1744352459318,7.22196,1554.3,1554.2,0.31047218]
[1744352459516,7.22196,1554.3,1553.9,12.87054]
[1744352459705,7.22196,1554.3,1554.2,0.31029351]
[1744352459909,7.22196,1554.3,1553.9,12.87054]
[1744352460104,7.22196,1554.3,1554.2,0.31029351]
[1744352460327,7.22196,1554.3,1554.0,6.43492]
[1744352460529,7.22196,1554.3,1554.2,0.31029351]
[1744352461130,7.22196,1554.3,1554.0,6.43492]
[1744352461448,0.7882,1554.3,1554.1,6.74524706]
[1744352461635,7.19428,1554.5,1554.2,6.43414]
[1744352462033,7.19428,1554.5,1554.3,0.30992001]
[1744352462319,0.7612,1554.5,1554.3,0.30992001]
[1744352462507,6.615,1554.6,1554.3,6.74341001]
[1744352462712,15.071605,1554.6,1554.3,6.43349]
[1744352462913,15.071605,1554.6,1554.4,0.30954655]
[1744352463438,6.43293,1554.5,1554.4,0.30954655]
[1744352463639,7.19413,1554.5,1554.4,0.30954655]
[1744352463937,7.19413,1554.5,1554.2,3.6968849]
[1744352464240,7.19413,1554.5,1554.3,0.30992001]
[1744352464440,9.4207035,1554.5,1554.3,0.30992001]
[1744352465736,6.43335,1554.4,1554.3,0.30992001]
[1744352466413,9.4207935,1554.5,1554.2,3.6968849]
[1744352466638,9.4207935,1554.5,1554.3,0.30992001]
[1744352466942,13.62741,1554.5,1554.3,0.30992001]
[1744352467309,13.62741,1554.5,1554.1,13.65994]
[1744352467635,7.19422,1554.5,1554.2,6.43413]
[1744352467841,0.7612,1554.5,1554.2,6.74442351]
[1744352468937,19.48039,1554.6,1554.4,6.43333]
[1744352468938,6.615,1554.6,1554.4,6.43333]
[1744352469108,6.615,1554.6,1554.3,6.43363]
[1744352469314,6.615,1554.6,1554.5,0.30917314]
[1744352469544,6.43173,1554.8,1554.4,7.53383655]
[1744352469844,0.7612,1554.9,1554.6,6.43234]
[1744352470045,3.7612,1554.9,1554.6,12.86472]
[1744352470204,3.7612,1554.9,1554.7,0.30649647]
[1744352470405,0.7612,1554.9,1554.6,12.86472]
[1744352470739,0.7612,1554.9,1554.7,0.30649647]
[1744352470935,68.97808,1555.0,1554.7,0.30649647]
[1744352471136,68.97808,1555.0,1554.6,12.86472]
[1744352471339,3.7612,1555.0,1554.8,0.30612321]
[1744352471643,10.19212,1555.0,1554.9,0.30574999]
[1744352471847,13.065381,1555.0,1554.9,0.30574999]
[1744352472042,6.43184,1554.8,1554.5,3.6968849]
[1744352472212,6.43239,1554.7,1554.5,3.6968849]
[1744352472550,6.43239,1554.7,1554.6,0.30686978]
[1744352473517,7.19297,1554.8,1554.6,0.30686978]
[1744352473718,0.7612,1554.8,1554.6,0.30686978]
[1744352473920,7.242,1554.9,1554.6,0.8168]
[1744352474118,7.242,1554.9,1554.7,0.30764196]
[1744352474514,13.67349,1554.9,1554.5,6.43263]
[1744352474748,13.67349,1554.9,1554.8,0.30726862]
[1744352474954,6.43175,1554.8,1554.5,6.43263]
[1744352475357,7.242,1554.9,1554.5,12.8654]
[1744352475560,7.242,1554.9,1554.6,6.43246]
[1744352476048,13.67361,1554.9,1554.5,12.86542]
[1744352476209,6.43174,1554.8,1554.5,6.43263]
[1744352476847,7.242,1554.9,1554.5,6.43263]
[1744352477050,6.43184,1554.8,1554.5,6.43263]
[1744352477546,13.67369,1554.9,1554.5,12.86537]
[1744352477851,13.67369,1554.9,1554.5,6.43263]
[1744352478547,6.43173,1554.8,1554.5,6.43263]
[1744352478850,6.4313,1554.9,1554.6,6.4325]
[1744352479841,0.8107,1555.0,1554.7,0.8168]
[1744352480157,6.43105,1555.0,1554.6,10.1293349]
[1744352480541,6.43144,1554.9,1554.6,10.1293349]
[1744352480943,6.43105,1555.0,1554.6,10.1292049]
[1744352481140,6.608,1555.1,1554.9,6.431]
[1744352481365,6.608,1555.1,1555.0,6.43086]
[1744352481543,6.608,1555.1,1555.0,7.24766]
[1744352481931,6.608,1555.1,1554.8,10.1284949]
[1744352482138,6.608,1555.1,1554.8,17.3768449]
[1744352484178,6.608,1555.1,1554.9,6.43123]
[1744352484576,13.03872,1555.1,1554.8,4.5136849]
[1744352484787,6.608,1555.1,1554.9,6.43123]
[1744352485272,6.608,1555.1,1554.8,17.3768549]
[1744352485657,6.43096,1555.0,1554.8,3.6968849]
[1744352486071,6.43128,1554.9,1554.8,3.6968849]
[1744352486236,7.24198,1554.9,1554.8,3.6968849]
[1744352487071,6.4325,1554.7,1554.4,0.8168]
[1744352487272,6.4325,1554.7,1554.2,6.434]
[1744352487273,6.43335,1554.4,1554.2,0.7595]
[1744352487437,7.24685,1554.4,1554.1,13.36008902]
[1744352487637,12.86809,1554.3,1554.1,6.16602902]
[1744352487838,6.43417,1554.2,1554.1,6.16602902]
[1744352488135,7.24694,1554.4,1554.1,6.16602902]
[1744352488337,7.24694,1554.4,1554.2,0.31257465]
[1744352488734,13.6806,1554.4,1554.2,0.31257465]
[1744352489038,6.43376,1554.3,1554.2,0.31257465]
[1744352489464,13.85426,1554.3,1554.2,0.31257465]
[1744352490047,14.40426,1554.3,1554.2,0.31257465]
[1744352490247,6.43523,1554.0,1553.8,3.6968849]
[1744352490447,6.43598,1553.8,1553.4,17.3310349]
[1744352490672,6.43681,1553.6,1553.4,0.7595]
[1744352490837,0.8135,1553.6,1553.2,6.16602902]
[1744352491034,6.4379,1553.3,1553.2,6.16602902]
[1744352491245,6.608,1553.5,1553.2,6.16602902]
[1744352491448,6.43764,1553.4,1553.2,6.16602902]
[1744352491756,6.4379,1553.3,1553.2,6.16602902]
[1744352491956,7.8014,1553.3,1553.2,6.16602902]
[1744352492872,10.8014,1553.3,1553.2,6.16602902]
[1744352493191,11.28464729,1553.3,1553.2,6.16602902]
[1744352493342,11.28464729,1553.3,1553.2,9.02e-06]
[1744352493683,11.28464729,1553.3,1552.5,6.17642219]
[1744352493684,6.4408,1552.6,1552.5,6.17642219]
[1744352493983,6.61,1552.6,1552.5,6.17642219]
[1744352496378,13.0508,1552.6,1552.5,6.17642219]
[1744352496555,18.67568412,1552.6,1552.5,6.17642219]
[1744352496757,18.67568412,1552.6,1552.1,0.05]
[1744352496758,6.99143,1552.5,1552.1,0.05]
[1744352496947,0.55,1552.5,1552.1,6.49268]
[1744352497145,0.55,1552.5,1552.1,12.93528]
[1744352497349,13.8643,1552.6,1552.1,6.4926]
[1744352497826,13.8643,1552.6,1552.1,0.05]
[1744352497827,6.44167,1552.4,1552.1,0.05]
[1744352499282,9.99161,1552.5,1552.1,0.05]
[1744352499784,16.72655312,1552.6,1552.1,0.05]
[1744352499785,3.8135,1552.6,1552.2,6.44219]
[1744352500078,3.8135,1552.6,1552.2,12.88449]
[1744352500275,3.8135,1552.6,1552.2,6.44219]
[1744352500683,0.8135,1552.6,1552.2,6.44219]
[1744352501043,13.05141,1552.7,1552.3,6.44203]
[1744352501249,6.611,1552.7,1552.3,12.88382]
[1744352501470,6.611,1552.7,1552.4,6.44131]
[1744352501673,6.611,1552.7,1552.5,6.44119]
[1744352502491,6.611,1552.7,1552.4,6.44131]
[1744352502988,13.05149,1552.7,1552.3,6.44199]
[1744352503171,6.611,1552.7,1552.3,12.88381]
[1744352503370,6.611,1552.7,1552.4,6.44161]
[1744352503569,6.611,1552.7,1552.4,6.71046756]
[1744352505166,6.611,1552.7,1552.4,0.26885756]
[1744352505365,6.611,1552.7,1552.3,12.88362]
[1744352505691,6.611,1552.7,1552.4,0.27511929]
[1744352506284,14.09981147,1552.7,1552.4,0.27511929]
[1744352506493,6.44084,1552.6,1552.4,0.27511929]
[1744352506673,12.88197,1552.6,1552.2,3.6968849]
[1744352506856,6.99084,1552.6,1552.5,0.27445749]
[1744352507057,0.55,1552.6,1552.2,10.1393449]
[1744352507387,13.05151,1552.7,1552.3,6.71707671]
[1744352507753,19.49222,1552.7,1552.3,0.27520671]
[1744352507958,6.99099,1552.6,1552.3,0.27520671]
[1744352508584,3.8135,1552.8,1552.3,0.27520671]
[1744352508859,3.0,1552.9,1552.6,6.44065]
[1744352509190,6.77352403,1553.3,1552.5,6.44106]
[1744352509191,15.757516,1553.4,1553.0,6.43912]
[1744352509362,7.3717,1553.4,1553.1,6.43865]
[1744352509558,7.3717,1553.4,1553.1,12.87717]
[1744352509758,7.3717,1553.4,1553.2,0.26835949]
[1744352509988,6.43878,1553.1,1552.8,3.6968849]
[1744352510182,6.43878,1553.1,1552.9,0.26976844]
[1744352510364,6.98849,1553.2,1552.9,0.26976844]
[1744352510565,13.42707,1553.2,1552.9,0.26976844]
[1744352510765,13.42707,1553.2,1552.8,10.1367949]
[1744352511092,14.843494,1553.2,1552.9,0.27048539]
[1744352511593,7.854914,1553.2,1552.8,16.5763849]
[1744352511770,7.17508,1553.3,1552.9,6.70982028]
[1744352512293,13.61323,1553.3,1552.9,6.70982028]
[1744352512885,3.0,1553.3,1553.0,6.43913]
[1744352513298,3.0,1553.3,1553.1,0.2723917]
[1744352514888,3.0,1553.3,1553.1,6.7111017]
[1744352515098,6.43832,1553.2,1553.1,0.2723917]
[1744352515499,6.43832,1553.2,1552.8,10.1366749]
[1744352516095,6.43832,1553.2,1552.9,0.27270987]
[1744352517006,15.87601,1553.3,1552.9,6.71225987]
[1744352517194,18.200781,1553.3,1552.9,6.71225987]
[1744352517921,6.43833,1553.2,1552.9,0.27270987]
[1744352518081,6.43876,1553.1,1552.9,0.27270987]
[1744352521126,6.43833,1553.2,1552.9,0.27270987]
[1744352521415,11.762671,1553.3,1552.8,10.1365649]
[1744352521713,9.43814,1553.3,1552.9,6.70979447]
[1744352521878,15.87638,1553.3,1552.9,6.70979447]
[1744352522081,6.43835,1553.2,1552.9,6.70979447]
[1744352522481,15.87634,1553.3,1552.9,6.70979447]
[1744352522680,9.43814,1553.3,1552.9,6.70979447]
[1744352523499,11.40534731,1553.3,1552.9,6.70979447]
[1744352523684,6.43835,1553.2,1552.9,6.70979447]
[1744352523893,11.40534731,1553.3,1552.9,6.70979447]
[1744352524108,17.84348731,1553.3,1552.9,6.70979447]
[1744352524528,6.43835,1553.2,1552.9,0.27040447]
[1744352524699,7.082795,1553.1,1552.9,0.27040447]
[1744352525722,6.43836,1553.2,1552.9,6.70996447]
[1744352526028,11.40529731,1553.3,1552.9,6.70996447]
[1744352526199,17.84340731,1553.3,1552.9,6.70996447]
[1744352526628,11.40529731,1553.3,1552.9,13.14937447]
[1744352527431,11.40529731,1553.3,1553.0,0.7697]
[1744352527595,7.57900973,1553.2,1553.1,0.27216694]
[1744352527795,7.57900973,1553.2,1552.8,7.20959]
[1744352528125,7.57900973,1553.2,1552.9,0.27334623]
[1744352528308,0.8234,1553.1,1552.9,0.27334623]
[1744352528507,7.26231,1553.1,1552.9,0.27334623]
[1744352528727,7.165381,1553.0,1552.9,0.27334623]
[1744352528893,13.775381,1553.0,1552.7,6.4403]
[1744352529090,13.775381,1553.0,1552.9,0.27324531]
[1744352529295,13.775381,1553.0,1552.8,0.27361983]
[1744352529296,7.336231,1553.0,1552.8,0.27361983]
[1744352529513,7.336231,1553.0,1552.9,0.27324531]
[1744352529914,7.336231,1553.0,1552.7,6.4403]
[1744352530139,16.775381,1553.0,1552.9,0.27324531]
[1744352530425,6.44074,1552.7,1552.5,3.6968849]
[1744352530625,6.44074,1552.7,1552.6,0.25156193]
[1744352530823,12.88148,1552.7,1552.3,7.21161]
[1744352530991,6.44005,1552.8,1552.4,6.69373487]
[1744352531403,10.26303,1552.9,1552.5,12.88238]
[1744352531729,1.026303,1552.8,1552.6,0.25170546]
[1744352532031,6.44039,1552.7,1552.6,0.25170546]
[1744352532196,6.44039,1552.7,1552.3,13.65357]
[1744352532397,6.44118,1552.6,1552.4,0.25245487]
[1744352532598,20.25882,1552.6,1552.4,0.25245487]
[1744352532799,2.025882,1552.5,1552.2,10.1393149]
[1744352533000,8.467102,1552.5,1552.3,0.25351165]
[1744352533200,6.44163,1552.4,1552.3,0.25351165]
[1744352533430,6.44163,1552.4,1552.1,0.855]
[1744352533629,6.44163,1552.4,1552.2,0.25076201]
[1744352533936,7.9325032,1552.4,1552.1,6.49282]
[1744352534100,7.9325032,1552.4,1552.3,0.25038734]
[1744352534302,7.9325032,1552.4,1552.2,0.25076201]
[1744352534502,7.9325032,1552.4,1552.3,0.25024374]
[1744352535015,1.4908732,1552.4,1552.1,6.49282]
[1744352535218,1.4908732,1552.4,1552.2,0.25083375]
[1744352535418,6.611,1552.6,1552.3,7.24677]
[1744352535734,6.611,1552.6,1552.4,0.25008445]
[1744352536104,13.05182,1552.6,1552.4,0.25008445]
[1744352536301,0.7656,1552.5,1552.4,0.25008445]
[1744352536508,6.44164,1552.4,1552.1,0.855]
[1744352536804,6.44164,1552.4,1552.2,0.25083375]
[1744352537021,6.44164,1552.4,1552.1,0.05]
[1744352537331,8.588562,1552.5,1552.2,0.25083375]
[1744352537836,8.588562,1552.5,1552.3,0.25045908]
[1744352538035,8.588562,1552.5,1552.1,12.93526]
[1744352538204,0.8588562,1552.4,1552.2,0.25151574]
[1744352538405,0.8588562,1552.4,1552.1,6.49259]
[1744352538658,0.8588562,1552.4,1552.2,0.25151574]
[1744352538865,0.8588562,1552.4,1552.1,12.93522]
[1744352539010,0.8588562,1552.4,1552.1,6.49259]
[1744352539209,0.8588562,1552.4,1552.2,0.25155164]
[1744352539532,1.381742,1552.5,1552.2,7.24729]
[1744352539711,1.381742,1552.5,1552.3,0.25117692]
[1744352540321,7.20603,1552.7,1552.3,6.69318692]
[1744352540805,0.7656,1552.7,1552.3,6.69318692]
[1744352541130,6.44099,1552.6,1552.3,0.25117692]
[1744352541659,6.44099,1552.6,1552.3,6.69317692]
[1744352542147,10.20635,1552.7,1552.3,0.25117692]
[1744352542351,1.020635,1552.6,1552.3,6.69304692]
[1744352542554,7.461515,1552.6,1552.2,13.68947]
[1744352542877,7.461515,1552.6,1552.3,0.25304394]
[1744352543048,7.461515,1552.6,1552.3,6.69504394]
[1744352543256,0.7461515,1552.5,1552.3,0.25304394]
[1744352543459,6.44129,1552.5,1552.3,0.25304394]
[1744352546153,12.88224,1552.6,1552.3,0.25304394]
[1744352546981,6.44133,1552.5,1552.3,0.25304394]
[1744352547276,16.85723,1552.4,1552.3,0.25304394]
[1744352547436,17.40723,1552.4,1552.3,0.25304394]
[1744352547630,26.52032931,1552.4,1552.1,0.05]
[1744352547831,6.4421,1552.3,1552.2,0.25570189]
[1744352548077,6.4421,1552.3,1552.1,0.05]
[1744352548373,6.4421,1552.3,1552.2,0.25570189]
[1744352548733,6.4421,1552.3,1552.1,0.05]
[1744352548965,9.09414093,1552.3,1552.1,0.05]
[1744352549134,9.09414093,1552.3,1552.2,0.25570189]
[1744352549466,9.09414093,1552.3,1552.1,0.05]
[1744352549635,9.09414093,1552.3,1552.2,0.25570189]
[1744352549975,9.09414093,1552.3,1552.1,0.05]
[1744352550156,9.09414093,1552.3,1552.2,0.25570189]
[1744352550462,9.09414093,1552.3,1552.1,0.05]
[1744352550661,6.51601,1552.6,1552.2,0.25570189]
[1744352550662,6.44127,1552.5,1552.2,0.25570189]
[1744352550865,6.613,1552.5,1552.2,6.44228]
[1744352551068,6.613,1552.5,1552.3,0.25518337]
[1744352551276,6.613,1552.5,1552.3,1.04718337]
[1744352552679,6.613,1552.5,1552.3,0.25518337]
[1744352552842,7.10293,1552.4,1552.3,0.25518337]
[1744352553033,7.90653,1552.4,1552.3,0.25518337]
[1744352553374,6.99205,1552.3,1552.2,3.6968849]
[1744352553790,7.90653,1552.4,1552.2,3.95237127]
[1744352554086,13.05423,1552.5,1552.2,3.95237127]
[1744352554291,6.44177,1552.4,1552.2,3.95237127]
[1744352556045,19.49573,1552.5,1552.2,3.95237127]
[1744352557576,6.4417,1552.4,1552.2,3.95237127]
[1744352557779,6.4417,1552.4,1552.2,0.25548637]
[1744352558075,6.44205,1552.3,1552.1,0.05]
[1744352558278,6.44205,1552.3,1552.2,0.25618013]